fUST/lending_fUST_20251004
["ID","MTS","AMOUNT","RATE_DAILY","PERIOD"]
[389067290,1759573842174,-500.0,0.0002097,2]
[389067292,1759573842183,-500.0,0.0002097,2]
[389067294,1759573842192,-500.0,0.0002097,2]
[389067295,1759573842200,-500.0,0.0002097,2]
[389067297,1759573842209,-500.0,0.0002097,2]
[389067299,1759573842222,-500.0,0.0002097,2]
[389067301,1759573842232,-308.04064265,0.0002097,2]
[389067303,1759573842243,-191.95935735,0.0002097,2]
[389067305,1759573842252,-500.0,0.0002097,2]
[389067307,1759573842261,-500.0,0.0002097,2]
[389067308,1759573842270,-500.0,0.0002097,2]
[389067310,1759573842279,-487.37845422,0.0002097,2]
[389067312,1759573842288,-500.0,0.0002097,2]
[389067314,1759573842297,-457.05787363,0.0002097,2]
[389067315,1759573842307,-664.01,0.0002097,2]
[389067317,1759573842316,-500.0,0.0002097,2]
[389067319,1759573842325,-500.0,0.0002097,2]
[389067321,1759573842333,-246.0117162,0.0002097,2]
[389067327,1759573842397,-253.9882838,0.0002097,2]
[389067329,1759573842406,-500.0,0.0002097,2]
[389067330,1759573842415,-500.0,0.0002097,2]
[389067332,1759573842424,-285.82509132,0.0002097,2]
[389067421,1759573843375,-500.0,0.00020861,2]
[389067423,1759573843385,-38.14954744,0.00020861,2]
[389067648,1759573846270,-461.85045256,0.00020861,2]
[389067650,1759573846279,-611.13,0.00020861,2]
[389067652,1759573846288,-1442.63954744,0.0002087,2]
[389067657,1759573846325,-242.88045256,0.0002087,2]
[389067659,1759573846334,-1000.71,0.00020872,2]
[389067661,1759573846343,-500.0,0.00020874,2]
[389067663,1759573846352,-392.70565979,0.00020874,2]
[389067665,1759573846362,-107.29434021,0.00020874,2]
[389067667,1759573846371,-214.17490868,0.0002097,2]
[389067669,1759573846380,-500.0,0.0002097,2]
[389067671,1759573846389,-500.0,0.0002097,2]
[389067673,1759573846398,-500.0,0.0002097,2]
[389067675,1759573846407,-571.79046969,0.0002097,2]
[389067677,1759573846416,-500.0,0.0002097,2]
[389067679,1759573846425,-483.0166451,0.0002097,2]
[389067681,1759573846434,-500.0,0.0002097,2]
[389067683,1759573846443,-500.0,0.0002097,2]
[389067685,1759573846452,-500.0,0.0002097,2]
[389067687,1759573846460,-500.0,0.0002097,2]
[389067689,1759573846469,-500.0,0.0002097,2]
[389067691,1759573846478,-500.0,0.0002097,2]
[389067693,1759573846487,-377.0312678,0.0002097,2]
[389067695,1759573846496,-500.0,0.0002097,2]
[389067697,1759573846506,-568.96,0.0002097,2]
[389067699,1759573846515,-500.0,0.0002097,2]
[389067701,1759573846524,-500.0,0.0002097,2]
[389067703,1759573846532,-839.06,0.0002097,2]
[389067706,1759573846541,-500.0,0.0002097,2]
[389067708,1759573846550,-500.0,0.0002097,2]
[389067710,1759573846559,-500.0,0.0002097,2]
[389067712,1759573846568,-500.0,0.0002097,2]
[389067713,1759573846576,-1089.19,0.0002097,2]
[389067715,1759573846586,-500.0,0.0002097,2]
[389067718,1759573846596,-500.0,0.0002097,2]
[389067719,1759573846606,-500.0,0.0002097,2]
[389067721,1759573846617,-500.0,0.0002097,2]
[389067724,1759573846627,-500.0,0.0002097,2]
[389067725,1759573846636,-500.0,0.0002097,2]
[389067727,1759573846645,-500.0,0.0002097,2]
[389067729,1759573846654,-363.2339348,0.0002097,2]
[389067731,1759573846663,-500.0,0.0002097,2]
[389067733,1759573846672,-500.0,0.0002097,2]
[389067735,1759573846681,-1095.44,0.0002097,2]
[389067737,1759573846690,-500.0,0.0002097,2]
[389067739,1759573846699,-842.22,0.0002097,2]
[389067741,1759573846708,-500.0,0.0002097,2]
[389067743,1759573846718,-500.0,0.0002097,2]
[389067745,1759573846727,-500.0,0.0002097,2]
[389067747,1759573846736,-500.0,0.0002097,2]
[389067749,1759573846744,-500.0,0.0002097,2]
[389067751,1759573846753,-545.19325996,0.0002097,2]
[389067753,1759573846762,-500.0,0.0002097,2]
[389067755,1759573846771,-425.26830759,0.0002097,2]
[389067757,1759573846780,-500.0,0.0002097,2]
[389067759,1759573846790,-500.0,0.0002097,2]
[389067761,1759573846799,-500.0,0.0002097,2]
[389067763,1759573846808,-500.0,0.0002097,2]
[389067765,1759573846817,-500.0,0.0002097,2]
[389067767,1759573846826,-500.0,0.0002097,2]
[389067769,1759573846835,-881.83,0.0002097,2]
[389067771,1759573846844,-500.0,0.0002097,2]
[389067773,1759573846853,-500.0,0.0002097,2]
[389067775,1759573846862,-500.0,0.0002097,2]
[389067777,1759573846871,-500.0,0.0002097,2]
[389067779,1759573846880,-500.0,0.0002097,2]
[389067781,1759573846889,-500.0,0.0002097,2]
[389067783,1759573846898,-489.31854265,0.0002097,2]
[389067785,1759573846907,-500.0,0.0002097,2]
[389067787,1759573846916,-500.0,0.0002097,2]
[389067789,1759573846925,-386.3465436,0.0002097,2]
[389067791,1759573846934,-332.73377822,0.0002097,2]
[389067793,1759573846943,-790.31,0.0002097,2]
[389067795,1759573846953,-500.0,0.0002097,2]
[389067797,1759573846962,-1000.0,0.0002097,2]
[389067799,1759573846971,-500.0,0.0002097,2]
[389067801,1759573846980,-500.0,0.0002097,2]
[389067803,1759573846989,-500.0,0.0002097,2]
[389067805,1759573846998,-500.0,0.0002097,2]
[389067807,1759573847007,-1751.0,0.0002097,2]
[389067809,1759573847017,-500.0,0.0002097,2]
[389067811,1759573847025,-1020.23,0.0002097,2]
[389067813,1759573847035,-500.0,0.0002097,2]
[389067815,1759573847045,-500.0,0.0002097,2]
[389067817,1759573847054,-500.0,0.0002097,2]
[389067819,1759573847063,-491.72562474,0.0002097,2]
[389067821,1759573847075,-850.85437526,0.0002097,2]
[389067823,1759573847084,-500.0,0.0002097,2]
[389067825,1759573847094,-500.0,0.0002097,2]
[389067827,1759573847103,-500.0,0.0002097,2]
[389067829,1759573847112,-500.0,0.0002097,2]
[389067831,1759573847121,-500.0,0.0002097,2]
[389067833,1759573847130,-500.0,0.0002097,2]
[389067835,1759573847139,-500.0,0.0002097,2]
[389067837,1759573847150,-482.48001115,0.0002097,2]
[389067839,1759573847159,-500.0,0.0002097,2]
[389067841,1759573847169,-500.0,0.0002097,2]
[389067843,1759573847178,-337.38857384,0.0002097,2]
[389067845,1759573847187,-500.0,0.0002097,2]
[389067847,1759573847196,-500.0,0.0002097,2]
[389067849,1759573847205,-1352.27,0.0002097,2]
[389067851,1759573847214,-500.0,0.0002097,2]
[389067853,1759573847223,-1841.57,0.0002097,2]
[389067855,1759573847232,-541.12,0.0002097,2]
[389067857,1759573847242,-630.78,0.0002097,2]
[389067859,1759573847250,-257.66394107,0.0002097,2]
[389067861,1759573847260,-37.35897677,0.0002097,2]
[389071771,1759573886674,-154.13,0.00020762,3]
[389071775,1759573886702,-462.39,0.00020762,3]
[389072195,1759573890759,-300.0,0.00020771,2]
[389073347,1759573902709,-5446.03415574,0.00020772,2]
[389073552,1759573904706,-10000.01,0.00020772,2]
[389074981,1759573930146,-5000.0,0.00020358,2]
[389074982,1759573930187,-0.01,0.00020358,2]
[389074983,1759573936675,-170.80586696,0.00020358,2]
[389074984,1759573940170,-2556.50945093,0.00020564,2]
[389074985,1759573944184,-218.5367485,0.00020673,2]
[389074987,1759573948234,-300.0,0.00020771,2]
[389074988,1759573952308,-10000.01,0.00020772,2]
[389074989,1759574004912,-5000.0,0.00020358,2]
[389074990,1759574015759,193.809435,0.00016438,2]
[389074991,1759574045241,-5000.0,0.00020358,2]
[389074992,1759574049225,-4341.02976396,0.00020358,2]
[389074993,1759574053431,-5000.0,0.00020564,2]
[389074994,1759574061314,-484.28750332,0.00020673,2]
[389074995,1759574062673,1210.05789031,0.00020466,2]
[389074996,1759574065373,-484.28750329,0.00020723,2]
[389074997,1759574069366,-300.0,0.00020769,2]
[389074998,1759574075438,-500.0,0.0002077,2]
[389074999,1759574075465,-500.0,0.0002077,2]
[389075000,1759574075491,-202.80911624,0.0002077,2]
[389075001,1759574075517,-500.0,0.0002077,2]
[389075002,1759574075543,-500.0,0.0002077,2]
[389075003,1759574075572,-500.0,0.0002077,2]
[389075004,1759574075598,-500.0,0.0002077,2]
[389075005,1759574075623,-237.39436471,0.0002077,2]
[389075006,1759574075648,-500.0,0.0002077,2]
[389075007,1759574075675,-500.0,0.0002077,2]
[389075008,1759574075702,-500.0,0.0002077,2]
[389075009,1759574075926,-500.0,0.0002077,2]
[389075010,1759574075953,-320.04445883,0.0002077,2]
[389075011,1759574075980,-500.0,0.0002077,2]
[389075012,1759574076007,-500.0,0.0002077,2]
[389075013,1759574076034,-500.0,0.0002077,2]
[389075014,1759574076061,-626.37416679,0.0002077,2]
[389075015,1759574076088,-507.61236067,0.0002077,2]
[389075016,1759574076118,-500.0,0.0002077,2]
[389075017,1759574076144,-500.0,0.0002077,2]
[389075018,1759574076171,-500.0,0.0002077,2]
[389075019,1759574076290,-500.0,0.0002077,2]
[389075020,1759574076317,-500.0,0.0002077,2]
[389075021,1759574076344,-500.0,0.0002077,2]
[389075022,1759574076370,-500.0,0.0002077,2]
[389075023,1759574076396,-500.0,0.0002077,2]
[389075024,1759574076423,-159.0294103,0.0002077,2]
[389075025,1759574076450,-500.0,0.0002077,2]
[389075026,1759574076476,-500.0,0.0002077,2]
[389075027,1759574076502,-500.0,0.0002077,2]
[389075028,1759574076529,-500.0,0.0002077,2]
[389075029,1759574076555,-181.9511794,0.0002077,2]
[389075030,1759574076626,-318.0488206,0.0002077,2]
[389075031,1759574076653,-500.0,0.0002077,2]
[389075032,1759574076681,-500.0,0.0002077,2]
[389075033,1759574076710,-500.0,0.0002077,2]
[389075034,1759574076908,-500.0,0.0002077,2]
[389075035,1759574076936,-500.0,0.0002077,2]
[389075036,1759574076964,-500.0,0.0002077,2]
[389075037,1759574076991,-500.0,0.0002077,2]
[389075038,1759574077020,-500.0,0.0002077,2]
[389075039,1759574077048,-500.0,0.0002077,2]
[389075040,1759574077233,-500.0,0.0002077,2]
[389075041,1759574077260,-500.0,0.0002077,2]
[389075042,1759574077288,-500.0,0.0002077,2]
[389075043,1759574077319,-500.0,0.0002077,2]
[389075044,1759574077346,-500.0,0.0002077,2]
[389075045,1759574077375,-500.0,0.0002077,2]
[389075046,1759574077405,-500.0,0.0002077,2]
[389075047,1759574077433,-254.52490221,0.0002077,2]
[389075048,1759574077461,-500.0,0.0002077,2]
[389075049,1759574077487,-500.0,0.0002077,2]
[389075050,1759574077620,-500.0,0.0002077,2]
[389075051,1759574077646,-500.0,0.0002077,2]
[389075052,1759574077674,-500.0,0.0002077,2]
[389075053,1759574077702,-500.0,0.0002077,2]
[389075054,1759574077730,-500.0,0.0002077,2]
[389075055,1759574077757,-500.0,0.0002077,2]
[389075056,1759574077784,-500.0,0.0002077,2]
[389075057,1759574077812,-600.0,0.0002077,2]
[389075058,1759574081506,-432.18960716,0.0002077,2]
[389075059,1759574087574,-10000.01,0.00020771,2]
[389075060,1759574087767,-10000.01,0.00020771,2]
[389075061,1759574087893,-10000.01,0.00020771,2]
[389075062,1759574088011,-10000.01,0.00020771,2]
[389075063,1759574088316,-0.05,0.00020771,2]
[389075064,1759574088338,-9999.91,0.00020771,2]
[389075065,1759574088649,-500.0,0.00020771,2]
[389075066,1759574093601,-3079.87052561,0.00020563,2]
[389075067,1759574093629,-500.0,0.00020771,2]
[389075068,1759574093656,-500.0,0.00020771,2]
[389075069,1759574093684,-500.0,0.00020771,2]
[389075070,1759574093711,-89.01894878,0.00020771,2]
[389075071,1759574093787,-662.23105122,0.00020771,2]
[389075072,1759574093836,-777.5,0.00020771,2]
[389075073,1759574093864,-500.0,0.00020771,2]
[389075074,1759574093892,-500.0,0.00020771,2]
[389075075,1759574093918,-500.0,0.00020771,2]
[389075076,1759574093944,-500.0,0.00020771,2]
[389075077,1759574093973,-500.0,0.00020771,2]
[389075078,1759574094000,-500.0,0.00020771,2]
[389075079,1759574094028,-500.0,0.00020771,2]
[389075080,1759574094056,-307.90295672,0.00020771,2]
[389075081,1759574094210,-4578.61,0.00020771,2]
[389075082,1759574094242,-342.79,0.00020771,2]
[389075083,1759574094355,-157.21,0.00020771,2]
[389075084,1759574095289,500.0,0.0002077,2]
[389075085,1759574095316,500.0,0.0002077,2]
[389075086,1759574095342,500.0,0.0002077,2]
[389075087,1759574095368,500.0,0.0002077,2]
[389075088,1759574095393,500.0,0.00020771,2]
[389075089,1759574095419,500.0,0.0002077,2]
[389075090,1759574095445,159.0294103,0.0002077,2]
[389075091,1759574095475,500.0,0.0002077,2]
[389075092,1759574095501,500.0,0.0002077,2]
[389075093,1759574095527,500.0,0.0002077,2]
[389075094,1759574095585,500.0,0.0002077,2]
[389075095,1759574097768,-552.49,0.00020771,2]
[389075096,1759574097892,-3736.0005897,0.00020772,2]
[389075097,1759574098107,-10000.01,0.00020772,2]
[389075098,1759574099515,-10000.01,0.00020772,2]
[389075110,1759574250092,697.87,0.00018033,2]
[389075117,1759574290641,-4760.58312332,0.00018689,2]
[389075125,1759574306912,-2920.59,0.00018878,2]
[389075128,1759574323407,-1310.83,0.00019749,2]
[389075136,1759574342431,-171.16813973,0.00019759,2]
[389075137,1759574344823,-203.65425316,0.00019759,2]
[389075138,1759574346558,-300.0,0.00019759,2]
[389075139,1759574352810,1154.20352799,0.00019749,2]
[389075140,1759574353249,-208.65514315,0.00019759,2]
[389075141,1759574356288,-676.99554466,0.00019759,2]
[389075142,1759574371811,-800.0,0.00020402,2]
[389075143,1759574376456,913.24487613,0.00020402,2]
[389075144,1759574387996,-300.0,0.00020619,2]
[389075147,1759574402020,300.0,0.00020619,2]
[389075148,1759574433046,500.0,0.00020619,2]
[389075149,1759574433073,500.0,0.00020619,2]
[389075150,1759574433106,500.0,0.00020619,2]
[389075151,1759574433134,500.0,0.00020619,2]
[389075152,1759574433160,500.0,0.00020619,2]
[389075153,1759574433190,402.27741335,0.00020619,2]
[389075154,1759574433219,500.0,0.00020619,2]
[389075155,1759574433244,500.0,0.00020619,2]
[389075156,1759574433288,334.17915119,0.00020619,2]
[389075157,1759574433315,500.0,0.00020619,2]
[389075158,1759574433353,500.0,0.00020619,2]
[389075159,1759574433385,550.55066838,0.00020619,2]
[389075160,1759574433414,500.0,0.00020619,2]
[389075161,1759574433457,500.0,0.00020619,2]
[389075162,1759574433488,645.83885345,0.00020619,2]
[389075163,1759574433526,185.36066951,0.00020619,2]
[389075164,1759574433557,500.0,0.00020619,2]
[389075165,1759574433601,500.0,0.00020619,2]
[389075166,1759574433634,481.80324412,0.00020619,2]
[389075167,1759574433657,18.19675588,0.00020619,2]
[389075168,1759574433685,500.0,0.00020619,2]
[389075169,1759574433721,500.0,0.00020619,2]
[389075170,1759574433757,500.0,0.00020619,2]
[389075171,1759574433785,500.0,0.00020619,2]
[389075172,1759574433839,500.0,0.00020619,2]
[389075173,1759574433874,500.0,0.00020619,2]
[389075174,1759574433939,500.0,0.00020619,2]
[389075175,1759574433987,423.86650082,0.00020619,2]
[389075176,1759574434033,500.0,0.00020619,2]
[389075177,1759574434072,500.0,0.00020619,2]
[389075178,1759574434102,500.0,0.00020619,2]
[389075179,1759574439163,-3090.49833918,0.0002062,2]
[389075180,1759574440916,-10000.01,0.0002062,2]
[389075181,1759574442484,4557.9467433,0.00020619,2]
[389075182,1759574442507,442.0532567,0.00020619,2]
[389075183,1759574444974,-5000.01,0.0002062,2]
[389075184,1759574445122,-10000.01,0.0002062,2]
[389075185,1759574446973,-10000.01,0.0002062,2]
[389075186,1759574448993,-10000.01,0.0002062,2]
[389075187,1759574451058,-10000.01,0.0002062,2]
[389075188,1759574453229,-10000.01,0.0002062,2]
[389075189,1759574455148,-10000.01,0.0002062,2]
[389075190,1759574457185,-4614.17766202,0.0002062,2]
[389075191,1759574457219,-771.65467596,0.0002062,2]
[389075192,1759574457766,1416.5926889,0.00020619,2]
[389075193,1759574459225,-2579.66981884,0.0002062,2]
[389075194,1759574465766,4840.67036232,0.0002062,2]
[389075195,1759574465788,159.32963768,0.0002062,2]
[389075196,1759574469402,-1200.0,0.0002067,2]
[389075197,1759574471802,160.0,0.00020619,2]
[389075198,1759574472099,213.76294453,0.00020619,2]
[389075199,1759574488347,5000.0,0.0002067,2]
[389075200,1759574494603,1461.89333019,0.00020609,2]
[389075201,1759574499857,-290.57250199,0.00020671,2]
[389075202,1759574501747,255.03145991,0.0002067,2]
[389075203,1759574511325,3581.15570562,0.00020671,2]
[389075204,1759574538585,500.0,0.00020619,2]
[389075205,1759574547304,500.0,0.00020619,2]
[389075206,1759574579167,1000.0,0.00028767,120]
[389075207,1759574599389,255.940093,0.00019757,2]
[389075212,1759574691744,223.15252743,0.00020669,2]
[389075221,1759574720973,232.4580016,0.0002067,2]
[389075225,1759574765606,870.47678248,0.00020457,2]
[389075226,1759574767579,3000.65042598,0.00020457,2]
[389075227,1759574767600,477.7747968,0.00020457,2]
[389075228,1759574770519,-232.45800157,0.00020695,2]
[389075229,1759574777720,165.04515382,0.0002062,2]
[389075230,1759574782482,165.04515382,0.00020669,2]
[389075231,1759574784711,154.8746327,0.00020553,2]
[389075232,1759574822272,201.872686,0.0001976,2]
[389075233,1759574883369,195.25846151,0.00020659,2]
[389075234,1759574944416,8652.99790901,0.00019917,2]
[389075235,1759574944440,286.57892848,0.00019917,2]
[389075236,1759574944466,9840.68036232,0.00019917,2]
[389075237,1759574944489,1228.25150079,0.00019917,2]
[389075238,1759574946750,-500.0,0.000207,2]
[389075239,1759574967388,5000.0,0.000207,2]
[389075263,1759575032517,-232.45800157,0.0002072,2]
[389075264,1759575032527,-232.45800157,0.00020745,2]
[389075265,1759575032536,-612.35624414,0.00020758,2]
[389075523,1759575038411,-587.64375586,0.00020758,2]
[389075525,1759575038421,-300.0,0.00020758,2]
[389075527,1759575038430,-500.0,0.00020759,2]
[389075528,1759575038440,-516.20431705,0.00020759,2]
[389075530,1759575038450,-500.0,0.00020759,2]
[389075533,1759575038460,-500.0,0.00020759,2]
[389075535,1759575038470,-500.0,0.00020759,2]
[389075537,1759575038479,-500.0,0.00020759,2]
[389075539,1759575038489,-500.0,0.00020759,2]
[389075541,1759575038498,-500.0,0.00020759,2]
[389075543,1759575038510,-500.0,0.00020759,2]
[389075545,1759575038520,-37095.31066254,0.00020759,2]
[389075547,1759575038530,-1000.0,0.0002076,2]
[389075549,1759575038540,-483.99922484,0.0002076,2]
[389075551,1759575038550,-500.0,0.0002076,2]
[389075553,1759575038559,-500.0,0.0002076,2]
[389075555,1759575038569,-500.0,0.0002076,2]
[389075556,1759575038578,-500.0,0.0002076,2]
[389075558,1759575038588,-500.0,0.0002076,2]
[389075560,1759575038597,-151.0,0.0002076,2]
[389075561,1759575038607,-500.0,0.0002076,2]
[389075563,1759575038617,-151.0,0.0002076,2]
[389075565,1759575038626,-500.0,0.0002076,2]
[389075567,1759575038636,-151.0,0.0002076,2]
[389075569,1759575038645,-166.0,0.0002076,2]
[389075571,1759575038655,-288.69921743,0.0002076,2]
[389075573,1759575038666,-250.0,0.0002076,2]
[389075575,1759575038675,-250.0,0.0002076,2]
[389075577,1759575038685,-250.0,0.0002076,2]
[389075579,1759575038694,-250.0,0.0002076,2]
[389075580,1759575038703,-796.56,0.0002076,3]
[389075583,1759575038713,-500.0,0.00020767,2]
[389075585,1759575038723,-500.0,0.00020767,2]
[389075587,1759575038732,-500.0,0.00020767,2]
[389075589,1759575038741,-509.08508407,0.00020767,2]
[389075591,1759575038751,-500.0,0.00020767,2]
[389075593,1759575038760,-500.0,0.00020767,2]
[389075595,1759575038770,-500.0,0.00020767,2]
[389075597,1759575038783,-500.0,0.00020767,2]
[389075599,1759575038791,-500.0,0.00020767,2]
[389075601,1759575038801,-855.5,0.00020767,2]
[389075603,1759575038810,-1359.69,0.00020767,2]
[389075605,1759575038821,-302.53272501,0.00020767,2]
[389075607,1759575038831,-500.0,0.00020767,2]
[389075609,1759575038841,-500.0,0.00020767,2]
[389075611,1759575038851,-1334.19,0.00020767,2]
[389075613,1759575038861,-500.0,0.00020767,2]
[389075615,1759575038871,-500.0,0.00020767,2]
[389075617,1759575038881,-500.0,0.00020767,2]
[389075619,1759575038890,-500.0,0.00020767,2]
[389075621,1759575038900,-500.0,0.00020767,2]
[389075623,1759575038910,-500.0,0.00020767,2]
[389075625,1759575038920,-783.35,0.00020767,2]
[389075627,1759575038930,-500.0,0.00020767,2]
[389075629,1759575038939,-5730.23,0.00020767,2]
[389075631,1759575038949,-1721.92,0.00020767,2]
[389075633,1759575038958,-614.86,0.00020767,2]
[389075635,1759575038968,-500.0,0.00020767,2]
[389075637,1759575038978,-500.0,0.00020767,2]
[389075639,1759575038988,-4611.38,0.00020767,2]
[389075641,1759575039000,-500.0,0.00020767,2]
[389075642,1759575039017,-579.57,0.00020767,2]
[389075643,1759575039027,-500.0,0.00020767,2]
[389075645,1759575039037,-1853.09,0.00020767,2]
[389075647,1759575039048,-500.0,0.00020768,2]
[389075649,1759575039057,-500.0,0.00020768,2]
[389075651,1759575039066,-500.0,0.00020768,2]
[389075653,1759575039075,-500.0,0.00020768,2]
[389075655,1759575039085,-338.47704226,0.00020768,2]
[389075657,1759575039094,-500.0,0.00020768,2]
[389075659,1759575039104,-500.0,0.00020768,2]
[389075661,1759575039115,-662.52,0.00020768,2]
[389075663,1759575039125,-500.0,0.00020768,2]
[389075665,1759575039135,-500.0,0.00020768,2]
[389075667,1759575039145,-500.0,0.00020768,2]
[389075669,1759575039154,-630.28631653,0.00020768,2]
[389075671,1759575039164,-500.0,0.00020768,2]
[389075674,1759575039173,-500.0,0.00020768,2]
[389075676,1759575039183,-374.23650633,0.00020768,2]
[389075678,1759575039193,-500.0,0.00020768,2]
[389075680,1759575039202,-515.25,0.00020768,2]
[389075682,1759575039211,-500.0,0.00020768,2]
[389075684,1759575039222,-500.0,0.00020768,2]
[389075686,1759575039231,-500.0,0.00020768,2]
[389075688,1759575039241,-500.0,0.00020768,2]
[389075690,1759575039251,-500.0,0.00020768,2]
[389075692,1759575039260,-500.0,0.00020768,2]
[389075694,1759575039270,-500.0,0.00020768,2]
[389075696,1759575039280,-500.0,0.00020768,2]
[389075698,1759575039289,-500.0,0.00020768,2]
[389075700,1759575039299,-500.0,0.00020768,2]
[389075702,1759575039308,-553.33,0.00020768,2]
[389075704,1759575039318,-500.0,0.00020768,2]
[389075706,1759575039328,-500.0,0.00020768,2]
[389075708,1759575039338,-500.0,0.00020768,2]
[389075710,1759575039348,-500.0,0.00020768,2]
[389075712,1759575039357,-500.0,0.00020768,2]
[389075714,1759575039367,-500.0,0.00020768,2]
[389075716,1759575039377,-500.0,0.00020768,2]
[389075718,1759575039386,-500.0,0.00020768,2]
[389075720,1759575039395,-500.0,0.00020768,2]
[389075723,1759575039405,-660.52,0.00020768,2]
[389075725,1759575039417,-500.0,0.00020768,2]
[389075727,1759575039427,-538.87,0.00020768,2]
[389075729,1759575039436,-500.0,0.00020768,2]
[389075731,1759575039445,-1662.05,0.00020768,2]
[389075733,1759575039455,-1662.05,0.00020768,2]
[389075735,1759575039465,-1662.05,0.00020768,2]
[389075737,1759575039474,-500.0,0.00020768,2]
[389075739,1759575039483,-1662.05,0.00020768,2]
[389075741,1759575039493,-1662.05,0.00020768,2]
[389075743,1759575039502,-500.0,0.00020768,2]
[389075745,1759575039512,-500.0,0.00020768,2]
[389075747,1759575039522,-965.15,0.00020768,2]
[389075749,1759575039531,-500.0,0.00020768,2]
[389075751,1759575039541,-841.86,0.00020768,2]
[389075753,1759575039550,-598.86,0.00020768,2]
[389075755,1759575039560,-500.0,0.00020768,2]
[389075757,1759575039570,-923.85,0.00020768,2]
[389075760,1759575039579,-500.0,0.00020768,2]
[389075762,1759575039589,-2402.54,0.00020768,2]
[389075764,1759575039598,-1426.2,0.00020768,2]
[389075766,1759575039608,-608.02,0.00020768,2]
[389075768,1759575039618,-500.0,0.00020768,2]
[389075770,1759575039627,-1244.36,0.00020768,2]
[389075772,1759575039636,-500.0,0.00020768,2]
[389075774,1759575039645,-1549.88,0.00020768,2]
[389075776,1759575039654,-500.0,0.00020768,2]
[389075778,1759575039663,-331.67024532,0.00020768,2]
[389075780,1759575039673,-500.0,0.00020768,2]
[389075782,1759575039682,-500.0,0.00020768,2]
[389075784,1759575039691,-500.0,0.00020768,2]
[389075786,1759575039701,-500.0,0.00020768,2]
[389075788,1759575039710,-500.0,0.00020768,2]
[389075790,1759575039720,-500.0,0.00020768,2]
[389075792,1759575039729,-500.0,0.00020768,2]
[389075794,1759575039739,-591.08,0.00020768,2]
[389075796,1759575039754,-487.5814609,0.00020768,2]
[389075799,1759575039764,-500.0,0.00020768,2]
[389075801,1759575039774,-500.0,0.00020768,2]
[389075803,1759575039784,-500.0,0.00020768,2]
[389075805,1759575039801,-500.0,0.00020768,2]
[389075807,1759575039810,-500.0,0.00020768,2]
[389075809,1759575039819,-500.0,0.00020768,2]
[389075811,1759575039830,-501.59873188,0.00020768,2]
[389075813,1759575039842,-500.0,0.00020768,2]
[389075815,1759575039853,-500.0,0.00020768,2]
[389075818,1759575039862,-500.83353063,0.00020768,2]
[389075820,1759575039874,-1597.48,0.00020768,2]
[389075822,1759575039884,-500.0,0.00020768,2]
[389075824,1759575039894,-500.0,0.00020768,2]
[389075826,1759575039903,-500.0,0.00020768,2]
[389075828,1759575039913,-500.0,0.00020768,2]
[389075830,1759575039923,-500.0,0.00020768,2]